bitfinex-derivatives/quotes_BTCF0:USTF0_20250208
["timestamp","ask_amount","ask_price","bid_price","bid_amount"]
[1739014258431,0.2083132,96014.0,96013.0,0.7216]
[1739014259632,0.2083132,96014.0,96010.0,0.002]
[1739014259820,0.2083132,96014.0,96013.0,0.7216]
[1739014260023,0.2173132,96014.0,96013.0,0.7226]
[1739014260425,0.2263132,96014.0,96013.0,0.7236]
[1739014260826,0.2203132,96014.0,96013.0,0.7226]
[1739014261625,0.2203132,96014.0,96013.0,0.7236]
[1739014262230,0.012,96014.0,96013.0,0.7236]
[1739014263238,0.00156303,96021.0,96013.0,0.7236]
[1739014263239,0.06812,96019.0,96013.0,0.7236]
[1739014263425,0.2083004,96020.0,96013.0,0.7236]
[1739014264437,0.018,96019.0,96013.0,0.7236]
[1739014265831,0.2083098,96016.0,96013.0,0.7236]
[1739014266031,0.2083098,96016.0,96013.0,0.7226]
[1739014266234,0.2083098,96016.0,96013.0,0.7236]
[1739014266646,0.012,96020.0,96013.0,0.7236]
[1739014266834,0.008,96020.0,96013.0,0.7236]
[1739014267143,0.2083037,96019.0,96013.0,0.7236]
[1739014267444,0.2083037,96019.0,96013.0,0.7226]
[1739014267635,0.006,96016.0,96013.0,0.7236]
[1739014268236,0.006,96016.0,96013.0,0.002]
[1739014268435,0.006,96016.0,96015.0,0.3608]
[1739014269842,0.004,96016.0,96015.0,0.3608]
[1739014270235,0.2083076,96017.0,96015.0,0.3608]
[1739014270435,0.004,96016.0,96015.0,0.3618]
[1739014270840,0.012,96016.0,96015.0,0.3628]
[1739014271343,0.008,96016.0,96015.0,0.3618]
[1739014271546,0.22558041,96016.0,96015.0,0.3628]
[1739014274131,0.22558041,96016.0,96015.0,0.3618]
[1739014274336,0.22958041,96016.0,96015.0,0.3628]
[1739014276540,0.29798041,96016.0,96015.0,0.3628]
[1739014276746,0.22958041,96016.0,96015.0,0.3628]
[1739014276945,0.29806041,96016.0,96015.0,0.3628]
[1739014278550,0.22958041,96016.0,96015.0,0.3628]
[1739014278751,0.29802041,96016.0,96015.0,0.3628]
[1739014281052,0.08044,96016.0,96015.0,0.3628]
[1739014282142,0.012,96016.0,96015.0,0.3628]
[1739014285051,0.06856,96024.0,96015.0,0.3628]
[1739014285249,0.2768515,96024.0,96023.0,0.3608]
[1739014286757,0.2848515,96024.0,96023.0,0.3618]
[1739014287859,0.2162915,96024.0,96023.0,0.3618]
[1739014288455,0.2082915,96024.0,96023.0,0.3628]
[1739014292853,0.0684,96026.0,96023.0,0.37425551]
[1739014293359,0.22425138,96030.0,96023.0,0.37425551]
[1739014293563,0.15585138,96030.0,96023.0,0.37425551]
[1739014294351,0.15585138,96030.0,96023.0,0.37325551]
[1739014294552,0.001,96026.0,96023.0,0.37425551]
[1739014295152,0.001,96026.0,96023.0,0.37325551]
[1739014295360,0.15685138,96030.0,96023.0,0.37425551]
[1739014296161,0.001,96026.0,96023.0,0.37425551]
[1739014297264,0.001,96026.0,96025.0,0.7216]
[1739014298368,0.2082816,96029.0,96025.0,0.7216]
[1739014299265,0.001,96026.0,96025.0,0.7226]
[1739014299960,0.2092816,96029.0,96025.0,0.7226]
[1739014300166,0.2092816,96029.0,96025.0,0.7236]
[1739014300364,0.2092816,96029.0,96028.0,0.3608]
[1739014300768,0.2092816,96029.0,96025.0,0.002]
[1739014300968,0.2092816,96029.0,96028.0,0.3608]
[1739014301273,0.2092816,96029.0,96025.0,0.002]
[1739014301475,0.2082816,96029.0,96025.0,0.001]
[1739014301766,0.2082816,96029.0,96028.0,0.3618]
[1739014302468,0.2092816,96029.0,96028.0,0.3618]
[1739014303065,0.2082816,96029.0,96028.0,0.3618]
[1739014303260,0.2092816,96029.0,96028.0,0.3628]
[1739014313567,0.2092816,96029.0,96028.0,0.002]
[1739014313768,0.2092816,96029.0,96028.0,0.3628]
[1739014313971,0.2092816,96029.0,96028.0,0.002]
[1739014314173,0.2092816,96029.0,96028.0,0.3628]
[1739014326983,0.2092816,96029.0,96028.0,0.002]
[1739014327286,0.2092816,96029.0,96028.0,0.3628]
[1739014334390,0.2092816,96029.0,96028.0,0.002]
[1739014334790,0.2092816,96029.0,96028.0,0.3628]
[1739014336190,0.2092816,96029.0,96028.0,0.3618]
[1739014336489,0.2092816,96029.0,96028.0,0.3628]
[1739014337692,0.2092816,96029.0,96028.0,0.002]
[1739014337893,0.2092816,96029.0,96028.0,0.3628]
[1739014346694,0.28579567,96029.0,96028.0,0.3628]
[1739014349497,0.2092816,96029.0,96028.0,0.3628]
[1739014350306,0.2776016,96029.0,96028.0,0.3628]
[1739014351007,0.2092816,96029.0,96028.0,0.3628]
[1739014351192,0.2775616,96029.0,96028.0,0.3628]
[1739014352097,0.2775616,96029.0,96028.0,0.3618]
[1739014356600,0.2775616,96029.0,96028.0,0.001]
[1739014356799,0.2775616,96029.0,96028.0,0.3618]
[1739014357307,0.2775616,96029.0,96028.0,0.001]
[1739014357605,0.2775616,96029.0,96028.0,0.3618]
[1739014358510,0.2775616,96029.0,96028.0,0.001]
[1739014358896,0.2775616,96029.0,96028.0,0.3618]
[1739014373823,0.2775616,96029.0,96028.0,0.001]
[1739014375714,0.35407681,96029.0,96028.0,0.001]
[1739014378527,0.2775616,96029.0,96028.0,0.001]
[1739014378727,0.2775616,96029.0,96028.0,0.3618]
[1739014379722,0.2765616,96029.0,96028.0,0.3608]
[1739014379928,0.2775616,96029.0,96028.0,0.3628]
[1739014381322,0.2765616,96029.0,96028.0,0.3618]
[1739014381521,0.2775616,96029.0,96028.0,0.3628]
[1739014382726,0.2845616,96029.0,96028.0,0.3628]
[1739014384532,0.2915616,96029.0,96028.0,0.3628]
[1739014385944,0.2845616,96029.0,96028.0,0.3618]
[1739014386133,0.2915616,96029.0,96028.0,0.3618]
[1739014386644,0.2925616,96029.0,96028.0,0.3628]
[1739014386845,0.2835616,96029.0,96028.0,0.3618]
[1739014387040,0.2242816,96029.0,96028.0,0.3628]
[1739014387347,0.2232816,96029.0,96028.0,0.3618]
[1739014389044,0.2152816,96029.0,96028.0,0.3618]
[1739014389248,0.2232816,96029.0,96028.0,0.3628]
[1739014389640,0.2222816,96029.0,96028.0,0.3618]
[1739014405452,0.014,96029.0,96028.0,0.3618]
[1739014405758,0.06784,96040.0,96028.0,0.3618]
[1739014406063,0.2760969,96040.0,96039.0,0.3608]
[1739014406953,0.2830969,96040.0,96039.0,0.3608]
[1739014407262,0.2920969,96040.0,96039.0,0.3608]
[1739014407658,0.2920969,96040.0,96039.0,0.3618]
[1739014408365,0.2830969,96040.0,96039.0,0.3618]
[1739014408559,0.2850969,96040.0,96039.0,0.3628]
[1739014410763,0.07684,96040.0,96039.0,0.37373305]
[1739014411257,0.009,96040.0,96039.0,0.37373305]
[1739014412861,0.009,96040.0,96039.0,0.01293305]
[1739014413062,0.009,96040.0,96039.0,0.73453305]
[1739014421668,0.009,96040.0,96039.0,0.01293305]
[1739014421869,0.009,96040.0,96039.0,0.73453305]
[1739014423168,0.2172569,96040.0,96039.0,0.37373305]
[1739014431582,0.2172569,96040.0,96039.0,0.3628]
[1739014431882,0.2172569,96040.0,96025.0,0.3608]
[1739014431883,0.2082873,96026.0,96025.0,0.3608]
[1739014432069,0.2760873,96026.0,96025.0,0.3608]
[1739014432566,0.2760873,96026.0,96025.0,0.37177146]
[1739014433773,0.2780873,96026.0,96025.0,0.37177146]
[1739014434284,0.2810873,96026.0,96025.0,0.37177146]
[1739014450287,0.2132873,96026.0,96025.0,0.37177146]
[1739014453996,0.0678,96038.0,96025.0,0.37177146]
[1739014454296,0.0678,96038.0,96037.0,0.3608]
[1739014454989,0.2082707,96034.0,96028.0,0.06565721]
[1739014455198,0.2082707,96034.0,96033.0,0.7216]
[1739014457396,0.2082707,96034.0,96033.0,0.7226]
[1739014462795,0.0678,96038.0,96033.0,0.7226]
[1739014463103,0.2082669,96036.0,96033.0,0.7226]
[1739014464311,0.2082669,96036.0,96033.0,0.7236]
[1739014465104,0.2082699,96034.0,96033.0,0.7236]
[1739014465900,0.0678,96038.0,96033.0,0.7236]
[1739014466305,0.0678,96038.0,96033.0,0.7216]
[1739014466505,0.0678,96038.0,96033.0,0.7226]
[1739014467010,0.00015621,96049.0,96033.0,0.7226]
[1739014467207,0.00015621,96049.0,96048.0,0.3608]
[1739014467208,0.20839361,96049.0,96048.0,0.3608]
[1739014467418,0.27619361,96049.0,96048.0,0.3608]
[1739014468708,0.06795621,96049.0,96048.0,0.3608]
[1739014469903,0.00015621,96049.0,96048.0,0.3618]
[1739014470107,0.00015621,96049.0,96048.0,0.3628]
[1739014470897,0.00015621,96049.0,96048.0,0.002]
[1739014471105,0.00015621,96049.0,96048.0,0.3628]
[1739014473713,0.00015621,96049.0,96048.0,0.3737043]
[1739014483317,0.00015621,96049.0,96048.0,0.0129043]
[1739014483505,0.00015621,96049.0,96048.0,0.3737043]
[1739014485918,0.00015621,96049.0,96048.0,0.0129043]
[1739014486216,0.00015621,96049.0,96048.0,0.3737043]
[1739014489112,0.00015621,96049.0,96048.0,0.0129043]
[1739014489321,0.00015621,96049.0,96048.0,0.3737043]
[1739014494622,0.06776,96054.0,96048.0,0.3737043]
[1739014495628,0.06776,96054.0,96048.0,0.3727043]
[1739014495828,0.00015621,96061.0,96048.0,0.3737043]
[1739014496033,0.06776,96055.0,96050.0,0.06565721]
[1739014496229,0.06776,96055.0,96050.0,0.3608]
[1739014497732,0.06776,96055.0,96050.0,0.3618]
[1739014498132,0.00015621,96061.0,96050.0,0.3618]
[1739014498331,0.00015621,96061.0,96060.0,0.3608]
[1739014499326,0.06807621,96061.0,96060.0,0.3608]
[1739014499526,0.06807621,96061.0,96060.0,0.3618]
[1739014500730,0.06807621,96061.0,96060.0,0.3628]
[1739014502740,0.06807621,96061.0,96060.0,0.37367805]
[1739014502928,0.00015621,96061.0,96060.0,0.37367805]
[1739014514047,0.06808,96075.0,96060.0,0.37367805]
[1739014514247,0.06808,96075.0,96074.0,0.3608]
[1739014514448,0.2081711,96080.0,96074.0,0.3608]
[1739014514655,0.2081711,96080.0,96075.0,0.3608]
[1739014515353,0.06808,96083.0,96075.0,0.3608]
[1739014516950,0.06808,96083.0,96075.0,0.3618]
[1739014517150,0.113,96086.0,96075.0,0.3618]
[1739014517359,0.00015613,96087.0,96085.0,0.3608]
[1739014517549,0.29801043,96088.0,96085.0,0.3608]
[1739014517748,0.29745042,96088.0,96085.0,0.3608]
[1739014518652,0.29745042,96088.0,96085.0,0.37187183]
[1739014519744,0.06852,96093.0,96085.0,0.37187183]
[1739014520052,0.06852,96093.0,96088.0,0.3608]
[1739014520252,0.2081494,96090.0,96088.0,0.3608]
[1739014521556,0.2081494,96090.0,96088.0,0.3618]
[1739014522558,0.2081494,96090.0,96088.0,0.3628]
[1739014533758,0.2081494,96090.0,96088.0,0.002]
[1739014535263,0.2081941,96069.0,96068.0,0.00015613]
[1739014535565,0.2768341,96069.0,96068.0,0.01127843]
[1739014535865,0.2768341,96069.0,96068.0,0.00015613]
[1739014537560,0.2768341,96069.0,96068.0,0.36095613]
[1739014537866,0.2778341,96069.0,96068.0,0.37205021]
[1739014554280,0.2778341,96069.0,96068.0,0.01125021]
[1739014554471,0.2778341,96069.0,96068.0,0.37205021]
[1739014555284,0.2778341,96069.0,96068.0,0.01125021]
[1739014555576,0.2778341,96069.0,96068.0,0.37205021]
[1739014557872,0.2778341,96069.0,96068.0,0.01125021]
[1739014558067,0.2778341,96069.0,96068.0,0.37205021]
[1739014559476,0.2778341,96069.0,96068.0,0.01125021]
[1739014559679,0.2778341,96069.0,96068.0,0.37205021]
[1739014564181,0.2778341,96069.0,96068.0,0.01125021]
[1739014564483,0.2778341,96069.0,96068.0,0.00015613]
[1739014568477,0.36964,96069.0,96046.0,0.54823678]
[1739014568678,0.2082417,96047.0,96046.0,0.54823678]
[1739014568886,0.2764417,96047.0,96046.0,0.54823678]
[1739014569087,0.2764417,96047.0,96046.0,0.55883661]
[1739014569887,0.2764417,96047.0,96046.0,0.56283661]
[1739014571276,0.2764417,96047.0,96046.0,0.56783661]
[1739014571477,0.2764417,96047.0,96046.0,0.37639983]
[1739014571677,0.2774417,96047.0,96046.0,0.37639983]
[1739014572079,0.2784417,96047.0,96046.0,0.37139983]
[1739014572477,0.2102417,96047.0,96046.0,0.37139983]
[1739014572785,0.2783617,96047.0,96046.0,0.37139983]
[1739014576485,0.2773617,96047.0,96046.0,0.37139983]
[1739014576692,0.2783617,96047.0,96046.0,0.37139983]
[1739014579190,0.2773617,96047.0,96046.0,0.37139983]
[1739014579499,0.2783617,96047.0,96046.0,0.37139983]
[1739014581692,0.2773617,96047.0,96046.0,0.37139983]
[1739014581893,0.2783617,96047.0,96046.0,0.37139983]
[1739014582798,0.2783617,96047.0,96046.0,0.01059983]
[1739014582992,0.2082482,96044.0,96043.0,0.3608]
[1739014585092,0.2092482,96044.0,96043.0,0.3608]
[1739014585295,0.2102482,96044.0,96043.0,0.3608]
[1739014591797,0.2082534,96042.0,96037.0,0.0109796]
[1739014592102,0.2082534,96042.0,96041.0,0.3608]
[1739014592601,0.2762134,96042.0,96041.0,0.3608]
[1739014593303,0.2772134,96042.0,96041.0,0.3608]
[1739014594205,0.2102534,96042.0,96041.0,0.3608]
[1739014594903,0.2082534,96042.0,96041.0,0.3608]
[1739014595098,0.2102534,96042.0,96041.0,0.3608]
[1739014600201,0.2092534,96042.0,96041.0,0.3608]
[1739014600506,0.2102534,96042.0,96041.0,0.3608]
[1739014602306,0.2092534,96042.0,96041.0,0.3608]
[1739014602509,0.2102534,96042.0,96041.0,0.3608]
[1739014603305,0.2092534,96042.0,96041.0,0.3608]
[1739014603495,0.2102526,96042.0,96041.0,0.3608]
[1739014612517,0.2092526,96042.0,96041.0,0.3608]
[1739014615315,0.2102526,96042.0,96041.0,0.3608]
[1739014620008,0.2092526,96042.0,96041.0,0.3608]
[1739014620215,0.2102526,96042.0,96041.0,0.3608]
[1739014621715,0.2092526,96042.0,96041.0,0.3608]
[1739014621918,0.2102526,96042.0,96041.0,0.3608]
[1739014625417,0.2082569,96040.0,96039.0,0.18743678]
[1739014625720,0.2082569,96040.0,96039.0,0.54823678]
[1739014626318,0.2082569,96040.0,96039.0,0.3608]
[1739014629821,0.2082613,96038.0,96037.0,0.0109796]
[1739014630625,0.2082613,96038.0,96037.0,0.00015613]
[1739014631623,0.2082613,96038.0,96037.0,0.00115613]
[1739014632022,0.2082613,96038.0,96037.0,3e-08]
[1739014632220,0.2082613,96038.0,96037.0,0.00100003]
[1739014632718,0.3,96038.0,96024.0,0.18743678]
[1739014632919,0.2082895,96025.0,96024.0,0.18743678]
[1739014633131,0.2760895,96025.0,96024.0,0.18743678]
[1739014633620,0.2760895,96025.0,96021.0,0.00015613]
[1739014633621,0.208296,96022.0,96021.0,0.00015613]
[1739014633817,0.208296,96022.0,96021.0,0.01106435]
[1739014634231,0.208296,96022.0,96021.0,0.00015613]
[1739014635326,0.208296,96022.0,96021.0,0.00515613]
[1739014636127,0.208296,96022.0,96021.0,0.01215613]
[1739014653825,0.208296,96022.0,96021.0,3e-08]
[1739014655035,0.2083198,96011.0,96010.0,0.37144965]
[1739014655230,0.2761198,96011.0,96010.0,0.37144965]
[1739014655842,0.2761198,96011.0,96010.0,0.3608]
[1739014657053,0.2761198,96011.0,96010.0,0.3628]
[1739014657744,0.2761198,96011.0,96010.0,0.3648]
[1739014658948,0.2761198,96011.0,96010.0,0.004]
[1739014663950,0.0678,96011.0,96009.0,0.01059077]
[1739014664150,0.0768,96011.0,96007.0,0.3366]
[1739014664347,0.2083263,96008.0,96007.0,0.3366]
[1739014664655,0.2083263,96008.0,96007.0,0.34730624]
[1739014666357,0.2083263,96008.0,96007.0,0.34830624]
[1739014666556,0.2153263,96008.0,96007.0,0.34930624]
[1739014666949,0.2203263,96008.0,96007.0,0.34830624]
[1739014670350,0.2881263,96008.0,96007.0,0.34830624]
[1739014674350,0.2881263,96008.0,96007.0,0.12310624]
[1739014675661,0.2881263,96008.0,96007.0,0.01170624]
[1739014675959,0.2811263,96008.0,96007.0,0.01070624]
[1739014676160,0.2881263,96008.0,96007.0,0.001]
[1739014677752,0.2851263,96008.0,96007.0,0.001]
[1739014678064,0.6529263,96008.0,96007.0,0.002]
[1739014678654,0.6529263,96008.0,96007.0,0.01257499]
[1739014680160,0.6369263,96008.0,96007.0,0.01057499]
[1739014680359,0.6459263,96008.0,96007.0,0.001]
[1739014680965,0.4286,96008.0,96006.0,0.00015621]
[1739014681156,0.2083285,96007.0,96006.0,0.00015621]
[1739014682060,0.2083285,96007.0,96006.0,0.01106166]
[1739014683464,0.2163285,96007.0,96006.0,0.01206166]
[1739014683965,0.2253285,96007.0,96006.0,0.01306166]
[1739014689374,0.017,96007.0,96006.0,0.01306166]
[1739014689673,0.08279993,96007.0,96006.0,0.01306166]
[1739014690171,0.0838,96007.0,96006.0,0.01306166]
[1739014690364,0.016,96007.0,96006.0,0.01306166]
[1739014690567,0.009,96007.0,96006.0,0.01206166]
[1739014690768,0.015,96007.0,96006.0,0.01206166]
[1739014692067,0.0828,96007.0,96006.0,0.01206166]
[1739014692561,0.0738,96007.0,96006.0,0.01106166]
[1739014692760,0.013,96007.0,96006.0,0.01206166]
[1739014695969,0.013,96007.0,96006.0,0.73366166]
[1739014697077,0.013,96007.0,96006.0,0.01206166]
[1739014697279,0.013,96007.0,96006.0,0.92109844]
[1739014701178,0.013,96007.0,96006.0,0.73366166]
[1739014719182,0.013,96007.0,96006.0,0.37286166]
[1739014732089,0.013,96007.0,96006.0,0.01206166]
[1739014733697,0.013,96007.0,96006.0,0.00115621]
[1739014747201,0.013,96007.0,96006.0,1e-08]
[1739014747912,0.0808,96007.0,96006.0,1e-08]
[1739014750007,0.2083307,96006.0,96001.0,1e-08]
[1739014750209,0.5691393,96002.0,96001.0,1e-08]
[1739014751411,0.5731393,96002.0,96001.0,1e-08]
[1739014751923,0.5731393,96002.0,96001.0,0.00100001]
[1739014752612,0.5731393,96002.0,96001.0,1e-08]
[1739014752806,0.5791393,96002.0,96001.0,0.00100001]
[1739014754806,0.58986104,96002.0,96001.0,0.00100001]
[1739014755907,0.66641084,96002.0,96001.0,0.00100001]
[1739014760701,0.30561084,96002.0,96001.0,0.00100001]
[1739014762007,0.22906104,96002.0,96001.0,0.00100001]
[1739014763213,0.29686104,96002.0,96001.0,0.00100001]
[1739014764417,0.29686104,96002.0,96000.0,72.82902702]
[1739014764418,0.29686104,96002.0,96000.0,72.60642121]
[1739014764613,0.29686104,96002.0,96000.0,72.60566121]
[1739014765518,0.29686104,96002.0,96000.0,72.08428511]
[1739014765817,0.29686104,96002.0,96000.0,71.96208925]
[1739014766420,0.29286104,96002.0,96000.0,71.96208925]
[1739014766621,0.29686104,96002.0,96000.0,71.96208925]
[1739014767721,0.29086104,96002.0,96000.0,71.96208925]
[1739014767922,0.29586104,96002.0,96000.0,71.96208925]
[1739014768124,0.30286104,96002.0,96000.0,71.96308925]
[1739014769824,0.07654996,96001.0,96000.0,71.96308925]
[1739014770924,0.07654996,96001.0,96000.0,71.96208925]
[1739014771127,0.09154996,96001.0,96000.0,71.96308925]
[1739014773626,0.09154996,96001.0,96000.0,71.89139956]
[1739014774217,0.15193338,96001.0,96000.0,71.89139956]
[1739014774419,0.22013338,96001.0,96000.0,71.89139956]
[1739014778023,0.50036368,96001.0,96000.0,71.89139956]
[1739014780533,0.86116368,96001.0,96000.0,71.89139956]
[1739014781319,0.86116368,96001.0,96000.0,71.82795036]
[1739014781526,0.86116368,96001.0,96000.0,71.45903644]
[1739014782424,0.86116368,96001.0,96000.0,71.43812391]
[1739014782623,0.86116368,96001.0,96000.0,71.41096783]
[1739014782823,0.86116368,96001.0,96000.0,71.37136783]
[1739014782824,0.58093338,96001.0,96000.0,71.37136783]
[1739014783032,1.35169338,96001.0,96000.0,71.37136783]
[1739014783934,1.35169338,96001.0,96000.0,71.07414966]
[1739014784135,1.35169338,96001.0,96000.0,71.04500718]
[1739014785732,1.80844356,96001.0,96000.0,71.04500718]
[1739014786235,1.80844356,96001.0,96000.0,71.00419531]
[1739014786733,1.88261211,96001.0,96000.0,71.00419531]
[1739014788932,1.88261211,96001.0,96000.0,70.97599531]
[1739014790841,1.81441211,96001.0,96000.0,70.97599531]
[1739014791041,1.88325211,96001.0,96000.0,70.90429878]
[1739014791342,1.81441211,96001.0,96000.0,70.90429878]
[1739014791533,1.88329211,96001.0,96000.0,70.90429878]
[1739014792339,2.16350393,96001.0,96000.0,70.90429878]
[1739014795143,2.09462393,96001.0,96000.0,70.90429878]
[1739014795344,2.16350393,96001.0,96000.0,70.90429878]
[1739014795735,1.88329211,96001.0,96000.0,70.90429878]
[1739014799549,1.88329211,96001.0,96000.0,70.69588878]
[1739014800252,1.88329211,96001.0,96000.0,70.67468878]
[1739014803954,1.88329211,96001.0,96000.0,70.60299104]
[1739014805051,1.88329211,96001.0,96000.0,70.30577287]
[1739014807739,1.9954217,96001.0,96000.0,70.30577287]
[1739014807938,1.9954217,96001.0,96000.0,69.78433461]
[1739014809054,1.9954217,96001.0,96000.0,69.74296999]
[1739014810747,1.9954217,96001.0,96000.0,66.67496999]
[1739014811556,1.9954217,96001.0,96000.0,66.63426999]
[1739014811756,1.9954217,96001.0,96000.0,66.56257028]
[1739014811961,1.9954217,96001.0,96000.0,66.18061602]
[1739014812558,2.2037632,96001.0,96000.0,66.15964023]
[1739014813353,2.14337978,96001.0,96000.0,66.15964023]
[1739014814858,2.14337978,96001.0,96000.0,66.09945023]
[1739014815157,2.14337978,96001.0,96000.0,64.8587941]
[1739014815158,2.36347978,96001.0,96000.0,64.8587941]
[1739014815661,2.36347978,96001.0,96000.0,64.81677497]
[1739014815960,2.36347978,96001.0,96000.0,64.77595297]
[1739014816461,2.36347978,96001.0,96000.0,64.6724847]
[1739014816647,2.36347978,96001.0,96000.0,64.61100585]
[1739014816849,2.36347978,96001.0,96000.0,64.57050985]
[1739014817052,2.36347978,96001.0,96000.0,64.52914285]
[1739014817359,2.36347978,96001.0,96000.0,64.50785204]
[1739014817360,2.25135019,96001.0,96000.0,64.50785204]
[1739014817560,2.25135019,96001.0,96000.0,64.21063387]
[1739014818961,2.25135019,96001.0,96000.0,64.06852375]
[1739014819168,2.25135019,96001.0,96000.0,63.25406591]
[1739014819461,2.55135019,96001.0,96000.0,63.00204161]
[1739014819660,2.55135019,96001.0,96000.0,62.96239161]
[1739014819863,2.55135019,96001.0,96000.0,62.89068244]
[1739014820647,2.55135019,96001.0,96000.0,62.59346427]
[1739014821053,2.25135019,96001.0,96000.0,62.59346427]
[1739014823357,2.3634956,96001.0,96000.0,62.59346427]
[1739014824259,2.2946156,96001.0,96000.0,62.59346427]
[1739014824469,2.4723556,96001.0,96000.0,62.59346427]
[1739014824766,2.5811556,96001.0,96000.0,62.59346427]
[1739014825057,2.5811556,96001.0,96000.0,62.19149819]
[1739014825862,2.5811556,96001.0,96000.0,62.15944947]
[1739014826268,2.5811556,96001.0,96000.0,62.07470602]
[1739014827066,2.5811556,96001.0,96000.0,61.9961084]
[1739014827861,2.5811556,96001.0,96000.0,61.92440041]
[1739014828965,1.8595556,96001.0,96000.0,61.92440041]
[1739014829162,2.5811556,96001.0,96000.0,61.85578041]
[1739014833171,2.3634556,96001.0,96000.0,61.85578041]
[1739014837574,2.5365556,96001.0,96000.0,61.85578041]
[1739014837777,2.3634556,96001.0,96000.0,61.85578041]
[1739014837972,2.2946156,96001.0,96000.0,61.85578041]
[1739014838167,2.3632156,96001.0,96000.0,61.85578041]
[1739014842679,2.3632156,96001.0,96000.0,61.78407378]
[1739014844782,2.3632156,96001.0,96000.0,61.72670899]
[1739014850582,2.3632156,96001.0,96000.0,61.6550032]
[1739014853578,2.3632156,96001.0,96000.0,61.5467632]
[1739014858695,2.3632156,96001.0,96000.0,61.47505563]
[1739014859085,2.3632156,96001.0,96000.0,61.41769013]
[1739014862795,2.3632156,96001.0,96000.0,61.38557013]
[1739014862989,2.3632156,96001.0,96000.0,61.35350013]
[1739014863587,2.3632156,96001.0,96000.0,61.30291655]
[1739014863789,2.4728156,96001.0,96000.0,61.30291655]
[1739014866097,2.36067019,96001.0,96000.0,61.30291655]
[1739014867790,2.53377019,96001.0,96000.0,61.30291655]
[1739014867988,2.76347019,96001.0,96000.0,61.23120576]
[1739014868388,2.76347019,96001.0,96000.0,60.93398759]
[1739014869203,2.76347019,96001.0,96000.0,60.90476135]
[1739014869899,2.76347019,96001.0,96000.0,60.88166135]
[1739014870196,2.76347019,96001.0,96000.0,60.82316134]
[1739014870400,2.54337019,96001.0,96000.0,60.82316134]
[1739014870590,2.54337019,96001.0,96000.0,60.75999134]
[1739014870896,2.03097019,96001.0,96000.0,60.75644134]
[1739014872892,2.03049019,96001.0,96000.0,60.75644134]
[1739014873285,2.03049019,96001.0,96000.0,60.72458134]
[1739014874696,1.42103417,96001.0,96000.0,60.72458134]
[1739014874896,2.14263417,96001.0,96000.0,60.72458134]
[1739014875200,2.14263417,96001.0,96000.0,60.66721459]
[1739014876002,2.14263417,96001.0,96000.0,60.55650615]
[1739014876392,1.64113417,96001.0,96000.0,60.55650615]
[1739014876592,2.36273417,96001.0,96000.0,60.55650615]
[1739014876793,1.64113417,96001.0,96000.0,60.55650615]
[1739014877088,2.36273417,96001.0,96000.0,60.55650615]
[1739014878908,1.64113417,96001.0,96000.0,60.55650615]
[1739014879203,2.36273417,96001.0,96000.0,60.55650615]
[1739014879403,1.64113417,96001.0,96000.0,60.55650615]
[1739014879606,2.36273417,96001.0,96000.0,60.55650615]
[1739014882403,2.29461417,96001.0,96000.0,60.55650615]
[1739014882600,2.36253417,96001.0,96000.0,60.55650615]
[1739014883906,2.29461417,96001.0,96000.0,60.55650615]
[1739014884205,2.36249417,96001.0,96000.0,60.55650615]
[1739014895414,1.64089417,96001.0,96000.0,60.55650615]
[1739014895712,2.36249417,96001.0,96000.0,60.55650615]
[1739014896418,2.36249417,96001.0,96000.0,60.48479965]
[1739014903619,2.35349417,96001.0,96000.0,60.48379965]
[1739014903818,2.36549417,96001.0,96000.0,60.48479965]
[1739014904118,2.36549417,96001.0,96000.0,60.42743452]
[1739014904619,2.36549417,96001.0,96000.0,60.35572611]
[1739014906118,2.36549417,96001.0,96000.0,60.32634416]
[1739014906319,2.36549417,96001.0,96000.0,60.28394332]
[1739014908816,2.36549417,96001.0,96000.0,60.23154332]
[1739014910212,2.36549417,96001.0,96000.0,51.03482093]
[1739014910525,2.71449417,96001.0,96000.0,50.86945049]
[1739014910728,2.88759417,96001.0,96000.0,50.66322023]
[1739014911129,2.88759417,96001.0,96000.0,50.65843805]
[1739014911622,2.88759417,96001.0,96000.0,50.52125105]
[1739014911920,2.88759417,96001.0,96000.0,50.49404442]
[1739014912727,2.71449417,96001.0,96000.0,50.37672091]
[1739014913426,2.71449417,96001.0,96000.0,50.05820043]
[1739014913616,2.71449417,96001.0,96000.0,49.98648544]
[1739014915728,2.71449417,96001.0,96000.0,49.9017312]
[1739014916023,2.77489868,96001.0,96000.0,49.88772292]
[1739014916420,2.77489868,96001.0,96000.0,49.36615835]
[1739014917032,2.77489868,96001.0,96000.0,49.29715835]
[1739014918925,2.05329868,96001.0,96000.0,49.29715835]
[1739014919119,2.77489868,96001.0,96000.0,49.29715835]
[1739014919522,2.77489868,96001.0,96000.0,49.23978607]
[1739014920426,2.77489868,96001.0,96000.0,48.7845373]
[1739014920725,2.77489868,96001.0,96000.0,48.72968889]
[1739014920922,2.77489868,96001.0,96000.0,48.36755124]
[1739014921222,2.77489868,96001.0,96000.0,47.98731098]
[1739014921418,2.77489868,96001.0,96000.0,47.90542264]
[1739014921613,2.77489868,96001.0,96000.0,47.49664695]
[1739014921827,2.77489868,96001.0,96000.0,47.3719456]
[1739014922035,2.71449417,96001.0,96000.0,47.33878561]
[1739014922224,2.71449417,96001.0,96000.0,47.31908562]
[1739014922623,2.71449417,96001.0,96000.0,47.31244562]
[1739014922928,2.71449417,96001.0,96000.0,47.2594592]
[1739014924228,2.71449417,96001.0,96000.0,46.96224103]
[1739014924932,2.71449417,96001.0,96000.0,46.92324103]
[1739014925529,2.71449417,96001.0,96000.0,46.90121352]
[1739014925728,2.71449417,96001.0,96000.0,46.86822074]
[1739014925930,2.71449417,96001.0,96000.0,46.78922139]
[1739014926724,2.71449417,96001.0,96000.0,46.49200322]
[1739014927125,2.71449417,96001.0,96000.0,46.47230323]
[1739014928833,2.36549417,96001.0,96000.0,46.44160323]
[1739014932234,2.36549417,96001.0,96000.0,46.40453323]
[1739014932632,2.53859417,96001.0,96000.0,46.40453323]
[1739014935030,2.46442562,96001.0,96000.0,46.40453323]
[1739014935637,2.35228164,96001.0,96000.0,46.40453323]
[1739014938541,2.35228164,96001.0,96000.0,46.19069545]
[1739014938724,2.42655323,96001.0,96000.0,46.19069545]
[1739014940535,2.25689323,96001.0,96000.0,46.19069545]
[1739014941426,2.25689323,96001.0,96000.0,46.12081169]
[1739014942525,2.29772805,96001.0,96000.0,46.12081169]
[1739014942741,2.36916805,96001.0,96000.0,46.12081169]
[1739014943038,2.36928805,96001.0,96000.0,46.12081169]
[1739014944038,2.36944805,96001.0,96000.0,46.12081169]